[Event "2026 European Womens Championship"]
[Site "Batumi, GE"]
[Date "2026.06.03"]
[Round "9"]
[White "Ediberidze, Alexandra"]
[Black "Saraci, Rinesa"]
[Result "0-1"]
[Board "80"]
[TimeControl "5400+30"]
[WhiteFideId "13636685"]
[BlackFideId "4701976"]
[WhiteElo "1638"]
[BlackElo "1754"]
[BlackTitle "WCM"]
[WhiteClock "0:32:38"]
[BlackClock "0:19:11"]
[Variant "Standard"]

1. e4 {[%clk 1:29:40]}  e5 {[%clk 1:30:54]} 2. Nf3 {[%clk 1:30:06]}  Nc6 {[%clk 1:31:16]} 3. Bb5 {[%clk 1:30:31]}  a6 {[%clk 1:30:38]}
4. Ba4 {[%clk 1:30:53]}  Nf6 {[%clk 1:30:30]} 5. d3 {[%clk 1:31:17]}  b5 {[%clk 1:30:19]} 6. Bb3 {[%clk 1:31:38]}  Bc5 {[%clk 1:29:26]}
7. O-O {[%clk 1:31:07]}  h6 {[%clk 1:28:02]} 8. c3 {[%clk 1:27:05]}  d6 {[%clk 1:25:24]} 9. d4 {[%clk 1:21:43]}  Bb6 {[%clk 1:07:43]}
10. h3 {[%clk 1:17:58]}  O-O {[%clk 1:06:07]} 11. Re1 {[%clk 0:46:11]}  Bb7 {[%clk 1:01:18]} 12. d5 {[%clk 0:45:26]}  Ne7 {[%clk 0:59:11]}
13. Be3 {[%clk 0:42:08]}  Nd7 {[%clk 0:43:16]} 14. g4 {[%clk 0:32:44]}  Ng6 {[%clk 0:39:09]} 15. Nbd2 {[%clk 0:27:39]}  Nc5 {[%clk 0:31:44]}
16. Bc2 {[%clk 0:25:35]}  Bc8 {[%clk 0:29:25]} 17. Nf1 {[%clk 0:22:29]}  Nf4 {[%clk 0:26:18]} 18. Kh2 {[%clk 0:19:21]}  Qf6 {[%clk 0:24:54]}
19. Ng3 {[%clk 0:15:55]}  g6 {[%clk 0:21:31]} 20. Bxf4 {[%clk 0:12:51]}  Qxf4 {[%clk 0:20:42]} 21. Kg2 {[%clk 0:12:48]}  Kh8 {[%clk 0:18:12]}
22. Qc1 {[%clk 0:11:27]}  Nd7 {[%clk 0:15:07]} 23. Ne2 {[%clk 0:09:05]}  Qxc1 {[%clk 0:15:04]} 24. Raxc1 {[%clk 0:09:26]}  Nf6 {[%clk 0:13:48]}
25. Ng3 {[%clk 0:04:26]}  Bd7 {[%clk 0:12:45]} 26. Red1 {[%clk 0:02:47]}  a5 {[%clk 0:12:06]} 27. b3 {[%clk 0:01:43]}  b4 {[%clk 0:11:13]}
28. c4 {[%clk 0:01:55]}  a4 {[%clk 0:10:42]} 29. Ra1 {[%clk 0:01:12]}  Ra7 {[%clk 0:10:17]} 30. bxa4 {[%clk 0:00:39]}  Bxa4 {[%clk 0:10:35]}
31. Bxa4 {[%clk 0:00:53]}  Rxa4 {[%clk 0:10:58]} 32. Rab1 {[%clk 0:00:52]}  Rfa8 {[%clk 0:10:38]} 33. Rb2 {[%clk 0:01:09]}  Rxa2 {[%clk 0:10:25]}
34. Rdd2 {[%clk 0:01:01]}  Rxb2 {[%clk 0:09:37]} 35. Rxb2 {[%clk 0:01:30]}  Bc5 {[%clk 0:09:50]} 36. Ne1 {[%clk 0:01:11]}  Rb8 {[%clk 0:03:01]}
37. Rb3 {[%clk 0:01:34]}  Nd7 {[%clk 0:02:26]} 38. Nf1 {[%clk 0:01:36]}  Ra8 {[%clk 0:01:14]} 39. Nd3 {[%clk 0:01:06]}  Ra2 {[%clk 0:00:40]}
40. Kf3 {[%clk 0:01:02]}  Nb6 {[%clk 0:00:51]} 41. Ne3 {[%clk 0:01:21]}  Bxe3 {[%clk 0:29:31]} 42. fxe3 {[%clk 0:31:40]}  Nxc4 {[%clk 0:28:06]}
43. Rxb4 {[%clk 0:32:04]}  Nd2+ {[%clk 0:26:33]} 44. Kg3 {[%clk 0:32:05]}  Ra3 {[%clk 0:25:47]} 45. Kf2 {[%clk 0:30:58]}  Nxe4+ {[%clk 0:23:37]}
46. Rxe4 {[%clk 0:31:26]}  Rxd3 {[%clk 0:23:58]} 47. Rc4 {[%clk 0:31:50]}  Rxd5 {[%clk 0:23:36]} 48. Rxc7 {[%clk 0:32:17]}  Kg7 {[%clk 0:23:47]}
49. Rd7 {[%clk 0:32:19]}  Kf6 {[%clk 0:23:45]} 50. Ke2 {[%clk 0:32:23]}  e4 {[%clk 0:21:07]} 51. Rd8 {[%clk 0:32:03]}  h5 {[%clk 0:19:33]}
52. Re8 {[%clk 0:31:40]}  Re5 {[%clk 0:19:29]} 53. Rh8 {[%clk 0:31:59]}  hxg4 {[%clk 0:19:27]} 54. hxg4 {[%clk 0:32:26]}  Rg5 {[%clk 0:19:28]}
55. Rh4 {[%clk 0:32:38]}  Ke5 {[%clk 0:19:11]} 0-1

[Event "2026 European Womens Championship"]
[Site "Batumi, GE"]
[Date "2026.06.03"]
[Round "9"]
[White "Casadevall Mainau, Iraida"]
[Black "Diasamidze, Lulu"]
[Result "0-1"]
[Board "82"]
[TimeControl "5400+30"]
[WhiteFideId "54543142"]
[BlackFideId "13623818"]
[WhiteElo "1729"]
[BlackElo "1924"]
[WhiteClock "0:00:09"]
[BlackClock "1:30:30"]
[Variant "Standard"]

1. e4 {[%clk 1:30:30]}  c5 {[%clk 0:00:00]} 2. Nf3 {[%clk 1:29:39]}  e6 {[%clk 0:00:00]} 3. d4 {[%clk 1:29:05]}  cxd4 {[%clk 0:00:00]}
4. Nxd4 {[%clk 1:28:33]}  a6 {[%clk 0:00:00]} 5. Bd3 {[%clk 1:26:27]}  Nf6 {[%clk 0:00:00]} 6. Qe2 {[%clk 1:25:33]}  d5 {[%clk 0:00:00]}
7. e5 {[%clk 1:17:14]}  Nfd7 {[%clk 0:00:00]} 8. Nd2 {[%clk 1:11:19]}  Qb6 {[%clk 0:00:00]} 9. c3 {[%clk 1:09:01]}  Nc6 {[%clk 0:00:00]}
10. Nxc6 {[%clk 1:01:03]}  bxc6 {[%clk 0:00:00]} 11. c4 {[%clk 0:56:20]}  Qd4 {[%clk 0:00:00]} 12. Nf3 {[%clk 0:45:13]}  Bb4+ {[%clk 0:00:00]}
13. Kf1 {[%clk 0:44:44]}  Qa7 {[%clk 0:00:00]} 14. cxd5 {[%clk 0:39:44]}  cxd5 {[%clk 0:00:00]} 15. Be3 {[%clk 0:37:05]}  Bc5 {[%clk 0:00:00]}
16. Bxc5 {[%clk 0:36:20]}  Qxc5 {[%clk 0:00:00]} 17. g3 {[%clk 0:27:49]}  Bb7 {[%clk 0:00:00]} 18. Kg2 {[%clk 0:22:47]}  h6 {[%clk 0:00:00]}
19. Rac1 {[%clk 0:20:34]}  Qb6 {[%clk 0:00:00]} 20. Rhd1 {[%clk 0:16:34]}  O-O {[%clk 0:00:00]} 21. Kg1 {[%clk 0:16:05]}  f6 {[%clk 0:00:00]}
22. b3 {[%clk 0:09:47]}  fxe5 {[%clk 0:00:00]} 23. Nxe5 {[%clk 0:01:44]}  Nxe5 {[%clk 0:00:00]} 24. Qxe5 {[%clk 0:01:23]}  Qxf2+ {[%clk 0:00:00]}
25. Kh1 {[%clk 0:01:02]}  Qf3+ {[%clk 0:00:00]} 26. Kg1 {[%clk 0:00:09]}  d4 {[%clk 0:00:00]} 27. Qxe6+ {[%clk 0:00:09]}  Kh8 {[%clk 0:00:00]}
28. Qg6 {[%clk 0:00:00]}  Qg2# {[%clk 0:00:00]} 0-1

[Event "2026 European Womens Championship"]
[Site "Batumi, GE"]
[Date "2026.06.04"]
[Round "10"]
[White "Salimova, Nurgyul"]
[Black "Vega Gutierrez, Sabrina"]
[Result "1/2-1/2"]
[Board "1"]
[TimeControl "5400+30"]
[WhiteFideId "2915138"]
[BlackFideId "2219026"]
[WhiteElo "2404"]
[BlackElo "2375"]
[WhiteTitle "IM"]
[BlackTitle "IM"]
[WhiteClock "0:26:00"]
[BlackClock "0:07:22"]
[Variant "Standard"]

1. c4 {[%clk 1:29:24]}  e6 {[%clk 1:30:52]} 2. Nf3 {[%clk 1:28:45]}  d5 {[%clk 1:31:14]} 3. e3 {[%clk 1:28:19]}  Nf6 {[%clk 1:31:17]}
4. Nc3 {[%clk 1:28:26]}  b6 {[%clk 1:31:19]} 5. cxd5 {[%clk 1:24:36]}  exd5 {[%clk 1:31:32]} 6. g3 {[%clk 1:23:01]}  Bb7 {[%clk 1:24:55]}
7. Bg2 {[%clk 1:22:33]}  g6 {[%clk 1:25:18]} 8. O-O {[%clk 1:18:41]}  Bg7 {[%clk 1:25:41]} 9. Ne2 {[%clk 1:16:25]}  O-O {[%clk 1:25:44]}
10. d3 {[%clk 1:10:10]}  Na6 {[%clk 1:21:18]} 11. b3 {[%clk 1:07:45]}  Ng4 {[%clk 1:08:43]} 12. Rb1 {[%clk 1:04:49]}  c5 {[%clk 1:09:05]}
13. h3 {[%clk 0:57:10]}  Ne5 {[%clk 1:08:18]} 14. Nxe5 {[%clk 0:56:35]}  Bxe5 {[%clk 1:08:45]} 15. d4 {[%clk 0:56:48]}  cxd4 {[%clk 1:07:44]}
16. Nxd4 {[%clk 0:52:21]}  Nc5 {[%clk 1:07:43]} 17. Bb2 {[%clk 0:49:56]}  Qe7 {[%clk 1:00:17]} 18. h4 {[%clk 0:40:09]}  Ne4 {[%clk 0:54:21]}
19. Qd3 {[%clk 0:32:46]}  Rac8 {[%clk 0:46:49]} 20. Rfc1 {[%clk 0:27:59]}  Rfe8 {[%clk 0:46:30]} 21. Bxe4 {[%clk 0:20:55]}  dxe4 {[%clk 0:46:40]}
22. Qb5 {[%clk 0:20:36]}  Rcd8 {[%clk 0:35:03]} 23. Nc6 {[%clk 0:13:35]}  Bxc6 {[%clk 0:34:25]} 24. Qxc6 {[%clk 0:13:59]}  Bxb2 {[%clk 0:30:24]}
25. Rxb2 {[%clk 0:14:24]}  Rd6 {[%clk 0:30:45]} 26. Qc7 {[%clk 0:11:29]}  Qf6 {[%clk 0:30:40]} 27. Qc3 {[%clk 0:08:15]}  Re5 {[%clk 0:23:19]}
28. Rd2 {[%clk 0:07:12]}  Rc5 {[%clk 0:22:30]} 29. Rxd6 {[%clk 0:07:34]}  Rxc3 {[%clk 0:21:44]} 30. Rxf6 {[%clk 0:07:57]}  Rxc1+ {[%clk 0:22:08]}
31. Kg2 {[%clk 0:08:25]}  Kg7 {[%clk 0:15:34]} 32. Rd6 {[%clk 0:08:28]}  Rc2 {[%clk 0:16:01]} 33. a4 {[%clk 0:07:13]}  Rb2 {[%clk 0:16:17]}
34. Rd4 {[%clk 0:07:12]}  Rxb3 {[%clk 0:16:43]} 35. Rxe4 {[%clk 0:07:37]}  h5 {[%clk 0:13:21]} 36. Re7 {[%clk 0:05:24]}  a5 {[%clk 0:09:16]}
37. Kf3 {[%clk 0:05:20]}  Kf6 {[%clk 0:09:43]} 38. Rb7 {[%clk 0:04:01]}  Rb4 {[%clk 0:08:02]} 39. e4 {[%clk 0:02:57]}  Ke5 {[%clk 0:07:26]}
40. Re7+ {[%clk 0:02:53]}  Kf6 {[%clk 0:07:53]} 41. Rb7 {[%clk 0:03:01]}  Ke5 {[%clk 0:07:22]} 42. Re7+ {[%clk 0:26:00]}  Kf6 {[%clk 0:37:45]} 1/2-1/2

[Event "2026 European Womens Championship"]
[Site "Batumi, GE"]
[Date "2026.06.04"]
[Round "10"]
[White "Hnatyshyn, Anastasiia"]
[Black "Roebers, Eline"]
[Result "1-0"]
[Board "2"]
[TimeControl "5400+30"]
[WhiteFideId "14198339"]
[BlackFideId "1058401"]
[WhiteElo "2207"]
[BlackElo "2389"]
[WhiteTitle "WFM"]
[BlackTitle "IM"]
[WhiteClock "0:30:05"]
[BlackClock "0:26:02"]
[Variant "Standard"]

1. e4 {[%clk 1:30:58]}  e6 {[%clk 1:30:48]} 2. d4 {[%clk 1:31:24]}  d5 {[%clk 1:31:15]} 3. Nc3 {[%clk 1:31:49]}  Nf6 {[%clk 1:31:42]}
4. e5 {[%clk 1:32:13]}  Nfd7 {[%clk 1:32:10]} 5. f4 {[%clk 1:32:37]}  c5 {[%clk 1:32:38]} 6. Nf3 {[%clk 1:33:02]}  Nc6 {[%clk 1:33:05]}
7. Be3 {[%clk 1:33:24]}  a6 {[%clk 1:33:33]} 8. Ne2 {[%clk 1:33:47]}  Qb6 {[%clk 1:33:52]} 9. Qc1 {[%clk 1:34:10]}  cxd4 {[%clk 1:34:14]}
10. Nexd4 {[%clk 1:34:08]}  Nxd4 {[%clk 1:34:36]} 11. Bxd4 {[%clk 1:31:21]}  Bc5 {[%clk 1:35:00]} 12. c3 {[%clk 1:31:26]}  Nb8 {[%clk 1:35:24]}
13. Qd2 {[%clk 1:24:59]}  Nc6 {[%clk 1:33:47]} 14. Bxc5 {[%clk 1:22:53]}  Qxc5 {[%clk 1:34:12]} 15. O-O-O {[%clk 1:21:41]}  b5 {[%clk 1:22:54]}
16. Kb1 {[%clk 1:19:55]}  Rb8 {[%clk 1:01:37]} 17. Nd4 {[%clk 1:09:29]}  a5 {[%clk 0:49:56]} 18. h4 {[%clk 1:03:18]}  Bd7 {[%clk 0:44:33]}
19. h5 {[%clk 0:48:59]}  b4 {[%clk 0:43:18]} 20. Rh3 {[%clk 0:49:12]}  bxc3 {[%clk 0:34:22]} 21. Rxc3 {[%clk 0:47:00]}  Qxd4 {[%clk 0:34:41]}
22. Qxd4 {[%clk 0:47:12]}  Nxd4 {[%clk 0:35:08]} 23. Rxd4 {[%clk 0:47:36]}  Ke7 {[%clk 0:35:11]} 24. Rc5 {[%clk 0:40:33]}  a4 {[%clk 0:32:25]}
25. Rc7 {[%clk 0:40:28]}  Rhc8 {[%clk 0:30:24]} 26. Rxc8 {[%clk 0:40:15]}  Rxc8 {[%clk 0:30:49]} 27. Rb4 {[%clk 0:40:29]}  Kd8 {[%clk 0:23:47]}
28. Bd3 {[%clk 0:34:50]}  g6 {[%clk 0:23:40]} 29. h6 {[%clk 0:34:33]}  Kc7 {[%clk 0:22:45]} 30. Kc2 {[%clk 0:27:56]}  Ra8 {[%clk 0:08:23]}
31. a3 {[%clk 0:24:04]}  Rf8 {[%clk 0:04:31]} 32. Kd2 {[%clk 0:19:55]}  Bc6 {[%clk 0:03:54]} 33. Ke3 {[%clk 0:19:17]}  Ra8 {[%clk 0:02:52]}
34. g4 {[%clk 0:16:33]}  Bd7 {[%clk 0:01:52]} 35. Kf3 {[%clk 0:14:34]}  Kd8 {[%clk 0:01:08]} 36. Kg3 {[%clk 0:13:35]}  Be8 {[%clk 0:01:02]}
37. Kh4 {[%clk 0:12:33]}  Ra7 {[%clk 0:01:06]} 38. Kg5 {[%clk 0:12:12]}  Ke7 {[%clk 0:01:32]} 39. f5 {[%clk 0:09:01]}  exf5 {[%clk 0:01:27]}
40. gxf5 {[%clk 0:09:22]}  Rc7 {[%clk 0:01:01]} 41. Rb8 {[%clk 0:05:23]}  gxf5 {[%clk 0:28:13]} 42. Bxf5 {[%clk 0:35:34]}  Rc1 {[%clk 0:28:39]}
43. Bxh7 {[%clk 0:29:17]}  Rg1+ {[%clk 0:27:20]} 44. Kf4 {[%clk 0:29:39]}  Rf1+ {[%clk 0:26:18]} 45. Ke3 {[%clk 0:29:27]}  f6 {[%clk 0:24:51]}
46. Bd3 {[%clk 0:28:49]}  Re1+ {[%clk 0:25:11]} 47. Kd2 {[%clk 0:29:15]}  Rxe5 {[%clk 0:25:36]} 48. h7 {[%clk 0:29:42]}  Rh5 {[%clk 0:26:02]}
49. Rxe8+ {[%clk 0:30:05]} 1-0

[Event "2026 European Womens Championship"]
[Site "Batumi, GE"]
[Date "2026.06.04"]
[Round "10"]
[White "Kulon, Klaudia"]
[Black "Narva, Mai"]
[Result "1/2-1/2"]
[Board "3"]
[TimeControl "5400+30"]
[WhiteFideId "1131044"]
[BlackFideId "4500512"]
[WhiteElo "2377"]
[BlackElo "2426"]
[WhiteTitle "IM"]
[BlackTitle "IM"]
[WhiteClock "0:07:30"]
[BlackClock "0:00:47"]
[Variant "Standard"]

1. e4 {[%clk 1:30:57]}  c5 {[%clk 1:29:43]} 2. Nf3 {[%clk 1:31:13]}  d6 {[%clk 1:29:59]} 3. d4 {[%clk 1:31:34]}  cxd4 {[%clk 1:30:21]}
4. Qxd4 {[%clk 1:31:59]}  Nc6 {[%clk 1:30:09]} 5. Bb5 {[%clk 1:32:25]}  a6 {[%clk 1:30:21]} 6. Bxc6+ {[%clk 1:32:49]}  bxc6 {[%clk 1:30:46]}
7. O-O {[%clk 1:33:00]}  e5 {[%clk 1:30:59]} 8. Qa4 {[%clk 1:33:26]}  Qc7 {[%clk 1:31:20]} 9. c4 {[%clk 1:33:43]}  Bd7 {[%clk 1:31:30]}
10. Nc3 {[%clk 1:33:43]}  Nf6 {[%clk 1:31:19]} 11. Qc2 {[%clk 1:32:44]}  Be7 {[%clk 1:25:59]} 12. c5 {[%clk 1:30:59]}  d5 {[%clk 1:17:47]}
13. Bg5 {[%clk 1:24:55]}  Be6 {[%clk 1:12:09]} 14. Rfe1 {[%clk 1:18:36]}  d4 {[%clk 0:47:17]} 15. Na4 {[%clk 1:17:17]}  Rb8 {[%clk 0:46:33]}
16. Bh4 {[%clk 1:10:58]}  Rb4 {[%clk 0:40:50]} 17. b3 {[%clk 1:10:10]}  Nd7 {[%clk 0:38:52]} 18. Qd2 {[%clk 0:58:08]}  Rb5 {[%clk 0:34:09]}
19. Bg3 {[%clk 1:00:20]}  Bxc5 {[%clk 0:26:33]} 20. Nxc5 {[%clk 0:59:41]}  Rxc5 {[%clk 0:26:57]} 21. Qxd4 {[%clk 0:45:29]}  f6 {[%clk 0:26:25]}
22. Rac1 {[%clk 0:35:03]}  Rxc1 {[%clk 0:21:15]} 23. Rxc1 {[%clk 0:35:31]}  c5 {[%clk 0:19:19]} 24. Qa4 {[%clk 0:30:44]}  Qd6 {[%clk 0:19:00]}
25. b4 {[%clk 0:30:13]}  O-O {[%clk 0:15:11]} 26. Rd1 {[%clk 0:29:24]}  Qb6 {[%clk 0:14:28]} 27. a3 {[%clk 0:19:00]}  Qb5 {[%clk 0:12:53]}
28. Qxb5 {[%clk 0:17:31]}  axb5 {[%clk 0:13:19]} 29. Rc1 {[%clk 0:17:19]}  cxb4 {[%clk 0:04:07]} 30. axb4 {[%clk 0:17:46]}  Ra8 {[%clk 0:04:31]}
31. Ne1 {[%clk 0:16:37]}  Ra4 {[%clk 0:03:57]} 32. Rb1 {[%clk 0:15:44]}  Ba2 {[%clk 0:03:19]} 33. Rb2 {[%clk 0:13:30]}  Nb8 {[%clk 0:01:36]}
34. f4 {[%clk 0:13:33]}  exf4 {[%clk 0:01:42]} 35. Bxf4 {[%clk 0:14:01]}  Nc6 {[%clk 0:02:05]} 36. Bd6 {[%clk 0:14:25]}  Bc4 {[%clk 0:02:07]}
37. Nf3 {[%clk 0:13:34]}  Kf7 {[%clk 0:02:03]} 38. Kf2 {[%clk 0:13:40]}  Ra3 {[%clk 0:01:14]} 39. Bc5 {[%clk 0:12:04]}  Bd3 {[%clk 0:01:08]}
40. Rd2 {[%clk 0:07:08]}  Bxe4 {[%clk 0:00:36]} 41. Rd7+ {[%clk 0:03:56]}  Kg8 {[%clk 0:27:23]} 42. Nd4 {[%clk 0:25:42]}  Nxd4 {[%clk 0:18:37]}
43. Rxd4 {[%clk 0:26:07]}  f5 {[%clk 0:17:04]} 44. Rd8+ {[%clk 0:22:57]}  Kf7 {[%clk 0:17:29]} 45. Rd7+ {[%clk 0:23:00]}  Kf6 {[%clk 0:17:12]}
46. Bd4+ {[%clk 0:22:52]}  Ke6 {[%clk 0:17:36]} 47. Rxg7 {[%clk 0:22:59]}  f4 {[%clk 0:17:39]} 48. h4 {[%clk 0:19:09]}  Ra2+ {[%clk 0:17:32]}
49. Kg1 {[%clk 0:19:12]}  Rd2 {[%clk 0:15:23]} 50. Bc5 {[%clk 0:18:38]}  h6 {[%clk 0:13:29]} 51. h5 {[%clk 0:14:36]}  Rc2 {[%clk 0:11:51]}
52. Rg8 {[%clk 0:11:58]}  Rd2 {[%clk 0:07:04]} 53. Bb6 {[%clk 0:10:49]}  Rd1+ {[%clk 0:06:22]} 54. Kh2 {[%clk 0:10:47]}  Rb1 {[%clk 0:04:02]}
55. Bc5 {[%clk 0:07:21]}  Rb2 {[%clk 0:03:58]} 56. Kh3 {[%clk 0:07:26]}  Bf5+ {[%clk 0:03:30]} 57. Kh2 {[%clk 0:06:39]}  Be4 {[%clk 0:03:10]}
58. Kh3 {[%clk 0:07:04]}  Bf5+ {[%clk 0:00:45]} 59. Kh2 {[%clk 0:07:30]}  Be4 {[%clk 0:00:47]} 1/2-1/2

[Event "2026 European Womens Championship"]
[Site "Batumi, GE"]
[Date "2026.06.04"]
[Round "10"]
[White "Danielian, Elina"]
[Black "Badelka, Olga"]
[Result "0-1"]
[Board "4"]
[TimeControl "5400+30"]
[WhiteFideId "13300210"]
[BlackFideId "13509926"]
[WhiteElo "2390"]
[BlackElo "2392"]
[WhiteTitle "GM"]
[BlackTitle "IM"]
[WhiteClock "0:01:13"]
[BlackClock "0:06:06"]
[Variant "Standard"]

1. d4 {[%clk 1:30:57]}  d5 {[%clk 1:30:54]} 2. c4 {[%clk 1:31:10]}  e6 {[%clk 1:31:18]} 3. Nc3 {[%clk 1:31:21]}  dxc4 {[%clk 1:31:38]}
4. e3 {[%clk 1:30:34]}  a6 {[%clk 1:31:54]} 5. Bxc4 {[%clk 1:29:30]}  b5 {[%clk 1:32:06]} 6. Be2 {[%clk 1:26:19]}  Nf6 {[%clk 1:32:18]}
7. Bf3 {[%clk 1:12:38]}  Ra7 {[%clk 1:32:38]} 8. Nge2 {[%clk 1:12:52]}  c5 {[%clk 1:30:52]} 9. O-O {[%clk 1:12:17]}  Bb7 {[%clk 1:29:13]}
10. Nf4 {[%clk 1:04:41]}  Nbd7 {[%clk 1:19:04]} 11. Bxb7 {[%clk 1:00:15]}  Rxb7 {[%clk 1:19:30]} 12. Qf3 {[%clk 1:00:37]}  Qc8 {[%clk 1:15:08]}
13. Rd1 {[%clk 0:56:49]}  cxd4 {[%clk 1:08:39]} 14. exd4 {[%clk 0:57:10]}  Bd6 {[%clk 1:08:35]} 15. d5 {[%clk 0:53:37]}  Ne5 {[%clk 0:49:14]}
16. Qh3 {[%clk 0:31:26]}  b4 {[%clk 0:44:43]} 17. Nce2 {[%clk 0:31:36]}  Neg4 {[%clk 0:34:56]} 18. dxe6 {[%clk 0:29:37]}  Bc5 {[%clk 0:33:54]}
19. Nd3 {[%clk 0:28:36]}  O-O {[%clk 0:28:59]} 20. Bf4 {[%clk 0:15:16]}  fxe6 {[%clk 0:24:23]} 21. Rac1 {[%clk 0:12:04]}  Nxf2 {[%clk 0:24:06]}
22. Nxf2 {[%clk 0:12:30]}  Ne4 {[%clk 0:24:28]} 23. Rxc5 {[%clk 0:12:43]}  Nxc5 {[%clk 0:22:47]} 24. Rc1 {[%clk 0:10:24]}  Rf5 {[%clk 0:13:43]}
25. Qe3 {[%clk 0:10:38]}  Qf8 {[%clk 0:12:37]} 26. h3 {[%clk 0:07:45]}  Rbf7 {[%clk 0:09:39]} 27. Ng4 {[%clk 0:06:28]}  Nd7 {[%clk 0:06:37]}
28. Qxe6 {[%clk 0:06:22]}  Qe7 {[%clk 0:06:18]} 29. Rc8+ {[%clk 0:05:20]}  Nf8 {[%clk 0:06:46]} 30. Qc4 {[%clk 0:03:12]}  h5 {[%clk 0:06:17]}
31. Rc7 {[%clk 0:01:14]}  Nd7 {[%clk 0:06:44]} 32. Rxd7 {[%clk 0:00:37]}  Qxd7 {[%clk 0:07:10]} 33. Ne5 {[%clk 0:00:45]}  Qc7 {[%clk 0:05:29]}
34. Qxc7 {[%clk 0:00:35]}  Rxc7 {[%clk 0:05:55]} 35. g4 {[%clk 0:00:46]}  Rxe5 {[%clk 0:05:39]} 36. Bxe5 {[%clk 0:01:13]}  Re7 {[%clk 0:06:06]} 0-1

[Event "2026 European Womens Championship"]
[Site "Batumi, GE"]
[Date "2026.06.04"]
[Round "10"]
[White "Ushenina, Anna"]
[Black "Khotenashvili, Bella"]
[Result "1-0"]
[Board "5"]
[TimeControl "5400+30"]
[WhiteFideId "14110911"]
[BlackFideId "13602640"]
[WhiteElo "2420"]
[BlackElo "2415"]
[WhiteTitle "GM"]
[BlackTitle "GM"]
[WhiteClock "0:07:01"]
[BlackClock "0:24:00"]
[Variant "Standard"]

1. e4 {[%clk 1:30:53]}  e5 {[%clk 1:29:43]} 2. Nf3 {[%clk 1:31:11]}  Nc6 {[%clk 1:30:08]} 3. Bb5 {[%clk 1:31:15]}  a6 {[%clk 1:30:21]}
4. Ba4 {[%clk 1:31:31]}  Nf6 {[%clk 1:30:32]} 5. Nc3 {[%clk 1:31:30]}  Be7 {[%clk 1:19:19]} 6. Bxc6 {[%clk 1:28:03]}  dxc6 {[%clk 1:19:35]}
7. d3 {[%clk 1:28:20]}  Nd7 {[%clk 1:18:38]} 8. Be3 {[%clk 1:27:35]}  Bb4 {[%clk 1:14:47]} 9. Qd2 {[%clk 1:22:14]}  Qe7 {[%clk 1:10:40]}
10. O-O {[%clk 1:19:37]}  O-O {[%clk 0:56:10]} 11. h3 {[%clk 1:15:16]}  Re8 {[%clk 0:53:38]} 12. a3 {[%clk 1:08:19]}  Bd6 {[%clk 0:50:13]}
13. Rae1 {[%clk 0:53:23]}  a5 {[%clk 0:43:35]} 14. Nh2 {[%clk 0:45:48]}  b5 {[%clk 0:41:19]} 15. Ne2 {[%clk 0:43:55]}  c5 {[%clk 0:28:55]}
16. Ng3 {[%clk 0:42:10]}  Nf8 {[%clk 0:25:03]} 17. f4 {[%clk 0:38:59]}  exf4 {[%clk 0:25:20]} 18. Bxf4 {[%clk 0:39:25]}  Bxf4 {[%clk 0:25:35]}
19. Qxf4 {[%clk 0:38:41]}  Ng6 {[%clk 0:25:46]} 20. Qf2 {[%clk 0:38:36]}  f6 {[%clk 0:22:26]} 21. Nf3 {[%clk 0:36:34]}  Ne5 {[%clk 0:18:02]}
22. Nh4 {[%clk 0:34:43]}  b4 {[%clk 0:14:00]} 23. Re3 {[%clk 0:31:22]}  g6 {[%clk 0:10:18]} 24. Nf3 {[%clk 0:20:14]}  Ra6 {[%clk 0:09:44]}
25. axb4 {[%clk 0:16:04]}  cxb4 {[%clk 0:08:47]} 26. b3 {[%clk 0:16:33]}  c5 {[%clk 0:08:56]} 27. Kh1 {[%clk 0:14:41]}  Kg7 {[%clk 0:06:38]}
28. Ne2 {[%clk 0:14:36]}  Nxf3 {[%clk 0:05:24]} 29. Rxf3 {[%clk 0:15:01]}  Qe5 {[%clk 0:05:32]} 30. Nf4 {[%clk 0:11:03]}  Bb7 {[%clk 0:04:29]}
31. Rg3 {[%clk 0:11:30]}  Rf8 {[%clk 0:04:02]} 32. Qd2 {[%clk 0:07:40]}  a4 {[%clk 0:03:27]} 33. bxa4 {[%clk 0:07:24]}  Rxa4 {[%clk 0:03:45]}
34. Qd1 {[%clk 0:05:52]}  Ra6 {[%clk 0:02:03]} 35. Qg4 {[%clk 0:06:06]}  f5 {[%clk 0:02:05]} 36. exf5 {[%clk 0:03:43]}  Rxf5 {[%clk 0:02:05]}
37. Ne6+ {[%clk 0:00:56]}  Rxe6 {[%clk 0:01:17]} 38. Qxf5 {[%clk 0:01:04]}  Qxf5 {[%clk 0:01:07]} 39. Rxf5 {[%clk 0:01:33]}  Rc6 {[%clk 0:00:56]}
40. Rd5 {[%clk 0:01:30]}  Bc8 {[%clk 0:00:41]} 41. Rgg5 {[%clk 0:01:20]}  Be6 {[%clk 0:28:23]} 42. Rxc5 {[%clk 0:30:28]}  Rd6 {[%clk 0:28:44]}
43. Rc7+ {[%clk 0:25:31]}  Kf6 {[%clk 0:28:23]} 44. Rb5 {[%clk 0:25:21]}  b3 {[%clk 0:28:09]} 45. cxb3 {[%clk 0:25:31]}  h5 {[%clk 0:27:23]}
46. Rc3 {[%clk 0:22:41]}  Bf5 {[%clk 0:26:07]} 47. Rbc5 {[%clk 0:22:28]}  Rd8 {[%clk 0:26:03]} 48. b4 {[%clk 0:16:29]}  Bxd3 {[%clk 0:26:23]}
49. Rb3 {[%clk 0:16:48]}  Be4 {[%clk 0:25:44]} 50. Rb2 {[%clk 0:17:15]}  g5 {[%clk 0:25:52]} 51. Kg1 {[%clk 0:16:41]}  g4 {[%clk 0:26:03]}
52. hxg4 {[%clk 0:11:33]}  hxg4 {[%clk 0:26:31]} 53. Rf2+ {[%clk 0:11:19]}  Ke6 {[%clk 0:25:18]} 54. Rg5 {[%clk 0:09:36]}  Rd4 {[%clk 0:24:54]}
55. b5 {[%clk 0:08:40]}  Bb7 {[%clk 0:24:01]} 56. Kh2 {[%clk 0:08:42]}  Rb4 {[%clk 0:24:00]} 57. Kg3 {[%clk 0:07:01]} 1-0